[Event "Titled Tuesday Blitz March 22 Early 2022"]
[White "Krysa, Leandro"]
[Black "Vasquez Schroeder, Rodrigo"]
[WhiteFideId "116807"]
[BlackFideId "3400042"]
[WhiteElo "2490"]
[BlackElo "2561"]
[Result "0-1"]
[Round "11"]
[TimeControl "180+1"]
[Date "2022.03.22"]
[WhiteClock "0:00:01"]
[BlackClock "0:01:02"]

1. e4 {[%clk 0:03:00]}  c5 {[%clk 0:02:59]} 2. Nf3 {[%clk 0:03:00]}  d6 {[%clk 0:02:59]} 3. d4 {[%clk 0:03:00]}  cxd4 {[%clk 0:02:59]} 4. Nxd4 {[%clk 0:03:00]}  Nf6 {[%clk 0:03:00]} 5. Nc3 {[%clk 0:03:01]}  a6 {[%clk 0:03:00]} 6. Rg1 {[%clk 0:03:01]}  h6 {[%clk 0:02:57]} 7. g4 {[%clk 0:02:57]}  g5 {[%clk 0:02:57]} 8. Be3 {[%clk 0:02:53]}  e6 {[%clk 0:02:53]} 9. Qe2 {[%clk 0:02:47]}  Nbd7 {[%clk 0:02:53]} 10. O-O-O {[%clk 0:02:47]}  Ne5 {[%clk 0:02:53]} 11. f4 {[%clk 0:02:27]}  gxf4 {[%clk 0:02:53]} 12. Bxf4 {[%clk 0:02:28]}  Nfd7 {[%clk 0:02:52]} 13. Kb1 {[%clk 0:02:17]}  b5 {[%clk 0:02:48]} 14. Nf5 {[%clk 0:02:08]}  Qc7 {[%clk 0:02:38]} 15. Bg2 {[%clk 0:01:58]}  b4 {[%clk 0:02:31]} 16. Nd5 {[%clk 0:01:51]}  exd5 {[%clk 0:02:30]} 17. exd5 {[%clk 0:01:51]}  Bb7 {[%clk 0:02:27]} 18. g5 {[%clk 0:01:35]}  hxg5 {[%clk 0:02:20]} 19. Bxg5 {[%clk 0:01:35]}  f6 {[%clk 0:02:19]} 20. Bf4 {[%clk 0:01:15]}  O-O-O {[%clk 0:02:18]} 21. h4 {[%clk 0:01:09]}  Kb8 {[%clk 0:02:14]} 22. h5 {[%clk 0:01:07]}  Rc8 {[%clk 0:02:13]} 23. h6 {[%clk 0:01:04]}  Nb6 {[%clk 0:01:56]} 24. Bh3 {[%clk 0:00:55]}  Qc4 {[%clk 0:01:55]} 25. Qxc4 {[%clk 0:00:50]}  Rxc4 {[%clk 0:01:51]} 26. Bc1 {[%clk 0:00:39]}  Nxd5 {[%clk 0:01:46]} 27. Bg2 {[%clk 0:00:25]}  Nf4 {[%clk 0:01:34]} 28. Bxb7 {[%clk 0:00:22]}  Kxb7 {[%clk 0:01:34]} 29. Rh1 {[%clk 0:00:22]}  Kc6 {[%clk 0:01:31]} 30. b3 {[%clk 0:00:19]}  Re4 {[%clk 0:01:26]} 31. Rh4 {[%clk 0:00:19]}  Ne2 {[%clk 0:01:25]} 32. Rxe4 {[%clk 0:00:12]}  Nc3+ {[%clk 0:01:25]} 33. Ka1 {[%clk 0:00:13]}  Nxe4 {[%clk 0:01:22]} 34. Rh1 {[%clk 0:00:12]}  Rh7 {[%clk 0:01:21]} 35. Bf4 {[%clk 0:00:09]}  Ng5 {[%clk 0:01:19]} 36. Kb2 {[%clk 0:00:08]}  a5 {[%clk 0:01:19]} 37. a3 {[%clk 0:00:08]}  bxa3+ {[%clk 0:01:18]} 38. Kxa3 {[%clk 0:00:08]}  d5+ {[%clk 0:01:19]} 39. Ka4 {[%clk 0:00:09]}  Kb6 {[%clk 0:01:15]} 40. c3 {[%clk 0:00:09]}  Ne6 {[%clk 0:01:11]} 41. Be3+ {[%clk 0:00:07]}  Bc5 {[%clk 0:01:09]} 42. Bc1 {[%clk 0:00:03]}  Ka6 {[%clk 0:01:06]} 43. Rh2 {[%clk 0:00:03]}  Nd7 {[%clk 0:01:05]} 44. b4 {[%clk 0:00:02]}  Nb6+ {[%clk 0:01:05]} 45. Kb3 {[%clk 0:00:02]}  axb4 {[%clk 0:01:06]} 46. cxb4 {[%clk 0:00:03]}  Bf8 {[%clk 0:01:07]} 47. Rg2 {[%clk 0:00:03]}  Ng5 {[%clk 0:01:03]} 48. Re2 {[%clk 0:00:02]}  Bxh6 {[%clk 0:01:02]} 49. Rh2 {[%clk 0:00:02]}  Bf8 {[%clk 0:01:02]} 50. Rxh7 {[%clk 0:00:01]}  Nxh7 {[%clk 0:01:02]} 51. Be3 {[%clk 0:00:02]}  Nc4 {[%clk 0:01:02]} 52. Bd4 {[%clk 0:00:01]}  Kb5 {[%clk 0:01:02]} 53. Bc3 {[%clk 0:00:01]}  Ne5 {[%clk 0:01:02]} 54. Nd4+ {[%clk 0:00:02]}  Kb6 {[%clk 0:01:02]} 55. Ne6 {[%clk 0:00:02]}  Bd6 {[%clk 0:01:02]} 56. Bd4+ {[%clk 0:00:03]}  Kc6 {[%clk 0:01:02]} 57. Nd8+ {[%clk 0:00:02]}  Kd7 {[%clk 0:01:02]} 58. Nb7 {[%clk 0:00:03]}  Ng5 {[%clk 0:01:03]} 59. b5 {[%clk 0:00:02]}  Ne6 {[%clk 0:01:03]} 60. Ba7 {[%clk 0:00:02]}  Kc7 {[%clk 0:01:02]} 61. Na5 {[%clk 0:00:02]}  Bc5 {[%clk 0:01:02]} 62. Bxc5 {[%clk 0:00:01]}  Nxc5+ {[%clk 0:01:03]} 63. Kc3 {[%clk 0:00:02]}  Kd6 {[%clk 0:01:01]} 64. b6 {[%clk 0:00:01]}  Nc6 {[%clk 0:01:02]} 0-1


[Site "https://www.chess.com"]

[Event "Titled Tuesday Blitz March 22 Early 2022"]
[White "Ladan, Nicholas"]
[Black "Bashirli, Saadat"]
[WhiteFideId "30918855"]
[BlackFideId "13429990"]
[WhiteElo "2167"]
[BlackElo "1173"]
[Result "1-0"]
[Round "11"]
[TimeControl "180+1"]
[Date "2022.03.22"]
[WhiteClock "0:00:08"]
[BlackClock "0:00:03"]

1. d4 {[%clk 0:03:00]}  d5 {[%clk 0:02:59]} 2. Bf4 {[%clk 0:03:00]}  c5 {[%clk 0:02:56]} 3. e3 {[%clk 0:03:00]}  e6 {[%clk 0:02:52]} 4. Nf3 {[%clk 0:03:01]}  Nf6 {[%clk 0:02:51]} 5. c3 {[%clk 0:03:00]}  Nc6 {[%clk 0:02:51]} 6. Nbd2 {[%clk 0:03:00]}  cxd4 {[%clk 0:02:49]} 7. exd4 {[%clk 0:02:59]}  Bd6 {[%clk 0:02:49]} 8. Bg3 {[%clk 0:02:58]}  Bxg3 {[%clk 0:02:47]} 9. hxg3 {[%clk 0:02:57]}  Bd7 {[%clk 0:02:43]} 10. Bd3 {[%clk 0:02:58]}  h6 {[%clk 0:02:42]} 11. Ne5 {[%clk 0:02:50]}  Qc7 {[%clk 0:02:36]} 12. f4 {[%clk 0:02:41]}  a6 {[%clk 0:02:25]} 13. a4 {[%clk 0:02:36]}  Ne7 {[%clk 0:02:19]} 14. Qe2 {[%clk 0:02:19]}  Nc8 {[%clk 0:01:55]} 15. g4 {[%clk 0:02:09]}  Nd6 {[%clk 0:01:29]} 16. g5 {[%clk 0:02:05]}  Ng8 {[%clk 0:01:28]} 17. Kf2 {[%clk 0:00:47]}  Ne7 {[%clk 0:00:51]} 18. g4 {[%clk 0:00:40]}  O-O-O {[%clk 0:00:32]} 19. gxh6 {[%clk 0:00:40]}  Rxh6 {[%clk 0:00:30]} 20. Rxh6 {[%clk 0:00:39]}  gxh6 {[%clk 0:00:31]} 21. Rh1 {[%clk 0:00:39]}  Rh8 {[%clk 0:00:27]} 22. Bc2 {[%clk 0:00:27]}  f6 {[%clk 0:00:21]} 23. Nef3 {[%clk 0:00:24]}  Qd8 {[%clk 0:00:17]} 24. Qf1 {[%clk 0:00:19]}  Qg8 {[%clk 0:00:16]} 25. Rh4 {[%clk 0:00:18]}  Ng6 {[%clk 0:00:15]} 26. Bxg6 {[%clk 0:00:17]}  Qxg6 {[%clk 0:00:16]} 27. Qh1 {[%clk 0:00:16]}  Ne4+ {[%clk 0:00:12]} 28. Ke3 {[%clk 0:00:13]}  Ng3 {[%clk 0:00:09]} 29. Qh3 {[%clk 0:00:11]}  Ne4 {[%clk 0:00:09]} 30. Rh5 {[%clk 0:00:06]}  f5 {[%clk 0:00:07]} 31. g5 {[%clk 0:00:06]}  Bxa4 {[%clk 0:00:03]} 32. Rxh6 {[%clk 0:00:05]}  Rxh6 {[%clk 0:00:03]} 33. Qxh6 {[%clk 0:00:06]}  Qg8 {[%clk 0:00:03]} 34. Ne5 {[%clk 0:00:05]}  Nd6 {[%clk 0:00:02]} 35. g6 {[%clk 0:00:04]}  Be8 {[%clk 0:00:02]} 36. g7 {[%clk 0:00:04]}  Nf7 {[%clk 0:00:02]} 37. Qxe6+ {[%clk 0:00:03]}  Kb8 {[%clk 0:00:02]} 38. Nxf7 {[%clk 0:00:03]}  Bxf7 {[%clk 0:00:03]} 39. Qd6+ {[%clk 0:00:03]}  Ka7 {[%clk 0:00:03]} 40. Qf8 {[%clk 0:00:03]}  a5 {[%clk 0:00:02]} 41. Qxg8 {[%clk 0:00:03]}  Bxg8 {[%clk 0:00:03]} 42. Nf3 {[%clk 0:00:04]}  Kb8 {[%clk 0:00:02]} 43. Nh4 {[%clk 0:00:04]}  Kc7 {[%clk 0:00:01]} 44. Nxf5 {[%clk 0:00:04]}  Kd7 {[%clk 0:00:02]} 45. Nh6 {[%clk 0:00:04]}  Be6 {[%clk 0:00:01]} 46. g8=Q {[%clk 0:00:05]}  Bxg8 {[%clk 0:00:02]} 47. Nxg8 {[%clk 0:00:06]}  Ke8 {[%clk 0:00:03]} 48. Nh6 {[%clk 0:00:07]}  Ke7 {[%clk 0:00:03]} 49. Ng4 {[%clk 0:00:07]}  Ke6 {[%clk 0:00:02]} 50. Nf2 {[%clk 0:00:08]}  Kf5 {[%clk 0:00:03]} 51. Nd3 {[%clk 0:00:08]}  b5 {[%clk 0:00:04]} 52. Nc5 {[%clk 0:00:07]}  a4 {[%clk 0:00:03]} 53. Nd3 {[%clk 0:00:07]}  Ke6 {[%clk 0:00:02]} 54. Nb4 {[%clk 0:00:07]}  Kd6 {[%clk 0:00:03]} 55. f5 {[%clk 0:00:08]}  Ke7 {[%clk 0:00:02]} 56. Kf4 {[%clk 0:00:08]}  Kf6 {[%clk 0:00:03]} 57. Nxd5+ {[%clk 0:00:08]}  Kf7 {[%clk 0:00:02]} 58. Ke5 {[%clk 0:00:08]}  a3 {[%clk 0:00:03]} 59. bxa3 {[%clk 0:00:08]}  b4 {[%clk 0:00:03]} 60. axb4 {[%clk 0:00:08]} 1-0


[Site "https://www.chess.com"]

[Event "Titled Tuesday Blitz March 22 Early 2022"]
[White "Lakshmi C"]
[Black "Jaferian, Koosha"]
[WhiteFideId "25035347"]
[BlackFideId "12507440"]
[WhiteElo "1775"]
[BlackElo "2030"]
[Result "0-1"]
[Round "11"]
[TimeControl "180+1"]
[Date "2022.03.22"]
[WhiteClock "0:00:01"]
[BlackClock "0:00:14"]

1. e4 {[%clk 0:02:49]}  c6 {[%clk 0:03:00]} 2. d4 {[%clk 0:02:47]}  d5 {[%clk 0:03:00]} 3. exd5 {[%clk 0:02:47]}  cxd5 {[%clk 0:03:01]} 4. Nf3 {[%clk 0:02:47]}  Nc6 {[%clk 0:03:01]} 5. h3 {[%clk 0:02:47]}  Bf5 {[%clk 0:03:01]} 6. Bd3 {[%clk 0:02:46]}  Bxd3 {[%clk 0:03:02]} 7. Qxd3 {[%clk 0:02:46]}  e6 {[%clk 0:03:02]} 8. c3 {[%clk 0:02:46]}  Nf6 {[%clk 0:03:03]} 9. Nbd2 {[%clk 0:02:44]}  Bd6 {[%clk 0:03:04]} 10. O-O {[%clk 0:02:43]}  O-O {[%clk 0:03:05]} 11. Re1 {[%clk 0:02:40]}  Rb8 {[%clk 0:03:04]} 12. a4 {[%clk 0:02:38]}  Qc7 {[%clk 0:03:03]} 13. Nf1 {[%clk 0:02:35]}  Rfc8 {[%clk 0:03:03]} 14. N1h2 {[%clk 0:02:14]}  Ne4 {[%clk 0:03:01]} 15. Ng4 {[%clk 0:02:10]}  Ne7 {[%clk 0:02:57]} 16. Ng5 {[%clk 0:02:05]}  Nxg5 {[%clk 0:02:54]} 17. Bxg5 {[%clk 0:02:04]}  Nf5 {[%clk 0:02:50]} 18. Ne5 {[%clk 0:02:02]}  f6 {[%clk 0:02:45]} 19. Nf3 {[%clk 0:01:35]}  fxg5 {[%clk 0:02:45]} 20. Rxe6 {[%clk 0:01:35]}  Rf8 {[%clk 0:02:08]} 21. g4 {[%clk 0:00:49]}  Nh4 {[%clk 0:01:05]} 22. Nxg5 {[%clk 0:00:46]}  g6 {[%clk 0:01:05]} 23. Qb5 {[%clk 0:00:17]}  Bh2+ {[%clk 0:00:56]} 24. Kh1 {[%clk 0:00:16]}  Rbd8 {[%clk 0:00:49]} 25. Rae1 {[%clk 0:00:13]}  Rd7 {[%clk 0:00:32]} 26. Qe2 {[%clk 0:00:09]}  Qf4 {[%clk 0:00:26]} 27. Re5 {[%clk 0:00:09]}  Qxf2 {[%clk 0:00:19]} 28. Qxf2 {[%clk 0:00:07]}  Rxf2 {[%clk 0:00:20]} 29. Re8+ {[%clk 0:00:06]}  Kg7 {[%clk 0:00:18]} 30. R8e7+ {[%clk 0:00:06]}  Rxe7 {[%clk 0:00:18]} 31. Rxe7+ {[%clk 0:00:04]}  Kf8 {[%clk 0:00:19]} 32. Rxh7 {[%clk 0:00:03]}  Bg3 {[%clk 0:00:16]} 33. Ne6+ {[%clk 0:00:03]}  Ke8 {[%clk 0:00:16]} 34. Ng7+ {[%clk 0:00:01]}  Kd8 {[%clk 0:00:13]} 35. Ne6+ {[%clk 0:00:01]}  Kc8 {[%clk 0:00:14]} 0-1


[Site "https://www.chess.com"]

[Event "Titled Tuesday Blitz March 22 Early 2022"]
[White "Ljukin, Sergei"]
[Black "Samunenkov, Ihor"]
[WhiteFideId "14102200"]
[BlackFideId "14187086"]
[WhiteElo "2312"]
[BlackElo "2409"]
[Result "1-0"]
[Round "11"]
[TimeControl "180+1"]
[Date "2022.03.22"]
[WhiteClock "0:00:18"]
[BlackClock "0:00:02"]

1. e4 {[%clk 0:02:57]}  c6 {[%clk 0:03:00]} 2. d4 {[%clk 0:02:56]}  d5 {[%clk 0:03:00]} 3. e5 {[%clk 0:02:56]}  c5 {[%clk 0:03:01]} 4. Nf3 {[%clk 0:02:54]}  cxd4 {[%clk 0:03:00]} 5. Nxd4 {[%clk 0:02:54]}  Nc6 {[%clk 0:03:01]} 6. c4 {[%clk 0:02:53]}  e6 {[%clk 0:03:01]} 7. Nc3 {[%clk 0:02:52]}  Bc5 {[%clk 0:02:59]} 8. Nxc6 {[%clk 0:02:52]}  bxc6 {[%clk 0:03:00]} 9. Qg4 {[%clk 0:02:51]}  Kf8 {[%clk 0:02:53]} 10. Bd3 {[%clk 0:02:50]}  Ne7 {[%clk 0:02:49]} 11. O-O {[%clk 0:02:45]}  Ng6 {[%clk 0:02:48]} 12. Qg3 {[%clk 0:02:40]}  Bd4 {[%clk 0:02:41]} 13. Bf4 {[%clk 0:02:11]}  Nxf4 {[%clk 0:02:10]} 14. Qxf4 {[%clk 0:02:10]}  Bb6 {[%clk 0:02:10]} 15. cxd5 {[%clk 0:01:54]}  cxd5 {[%clk 0:02:10]} 16. Nb5 {[%clk 0:01:53]}  g5 {[%clk 0:01:42]} 17. Qf3 {[%clk 0:01:44]}  Kg7 {[%clk 0:01:33]} 18. Nd6 {[%clk 0:01:42]}  Qe7 {[%clk 0:01:33]} 19. Kh1 {[%clk 0:01:24]}  f6 {[%clk 0:00:49]} 20. exf6+ {[%clk 0:01:15]}  Qxf6 {[%clk 0:00:50]} 21. Qh5 {[%clk 0:01:00]}  Bd7 {[%clk 0:00:26]} 22. f4 {[%clk 0:00:44]}  Be8 {[%clk 0:00:16]} 23. Nxe8+ {[%clk 0:00:40]}  Raxe8 {[%clk 0:00:17]} 24. fxg5 {[%clk 0:00:40]}  Qe7 {[%clk 0:00:15]} 25. g6 {[%clk 0:00:30]}  Ref8 {[%clk 0:00:11]} 26. gxh7 {[%clk 0:00:27]}  Rxf1+ {[%clk 0:00:02]} 27. Rxf1 {[%clk 0:00:25]}  Rf8 {[%clk 0:00:03]} 28. Qe5+ {[%clk 0:00:21]}  Kh6 {[%clk 0:00:02]} 29. Rxf8 {[%clk 0:00:18]} 1-0


[Site "https://www.chess.com"]

[Event "Titled Tuesday Blitz March 22 Early 2022"]
[White "Mikhalsky, Vladimir"]
[Black "Coto Mederos, Michel"]
[WhiteFideId "14144352"]
[BlackFideId "3508528"]
[WhiteElo "2301"]
[BlackElo "2427"]
[Result "1-0"]
[Round "11"]
[TimeControl "180+1"]
[Date "2022.03.22"]
[WhiteClock "0:00:08"]
[BlackClock "0:00:14"]

1. c4 {[%clk 0:02:59]}  e6 {[%clk 0:02:59]} 2. g3 {[%clk 0:02:57]}  d5 {[%clk 0:03:00]} 3. Bg2 {[%clk 0:02:58]}  Nf6 {[%clk 0:03:00]} 4. Nf3 {[%clk 0:02:58]}  c5 {[%clk 0:02:56]} 5. O-O {[%clk 0:02:57]}  Nc6 {[%clk 0:02:56]} 6. cxd5 {[%clk 0:02:56]}  exd5 {[%clk 0:02:56]} 7. d4 {[%clk 0:02:56]}  Be7 {[%clk 0:02:51]} 8. Nc3 {[%clk 0:02:56]}  O-O {[%clk 0:02:50]} 9. h3 {[%clk 0:02:55]}  h6 {[%clk 0:02:26]} 10. Be3 {[%clk 0:02:50]}  cxd4 {[%clk 0:02:24]} 11. Nxd4 {[%clk 0:02:49]}  Ne5 {[%clk 0:02:13]} 12. b3 {[%clk 0:02:45]}  Be6 {[%clk 0:02:10]} 13. Nxe6 {[%clk 0:02:40]}  fxe6 {[%clk 0:02:11]} 14. Nb5 {[%clk 0:02:37]}  Nc6 {[%clk 0:02:04]} 15. Nd4 {[%clk 0:02:34]}  e5 {[%clk 0:01:58]} 16. Ne6 {[%clk 0:02:32]}  Qd7 {[%clk 0:01:51]} 17. Nxf8 {[%clk 0:02:32]}  Rxf8 {[%clk 0:01:52]} 18. Rc1 {[%clk 0:02:17]}  a6 {[%clk 0:01:47]} 19. Bc5 {[%clk 0:02:17]}  e4 {[%clk 0:01:38]} 20. Bxe7 {[%clk 0:02:14]}  Qxe7 {[%clk 0:01:39]} 21. Qd2 {[%clk 0:01:58]}  Qe5 {[%clk 0:01:33]} 22. Rc5 {[%clk 0:01:51]}  Qd6 {[%clk 0:01:27]} 23. Rfc1 {[%clk 0:01:45]}  d4 {[%clk 0:01:25]} 24. Qf4 {[%clk 0:01:36]}  Qe6 {[%clk 0:01:18]} 25. Qf5 {[%clk 0:01:32]}  Qe7 {[%clk 0:01:14]} 26. Qg6 {[%clk 0:01:22]}  Qe6 {[%clk 0:00:53]} 27. Qf5 {[%clk 0:01:15]}  Qe7 {[%clk 0:00:53]} 28. h4 {[%clk 0:01:10]}  Rd8 {[%clk 0:00:49]} 29. Bh3 {[%clk 0:01:08]}  Kh8 {[%clk 0:00:37]} 30. Qe6 {[%clk 0:00:57]}  Qf8 {[%clk 0:00:37]} 31. Rf5 {[%clk 0:00:45]}  d3 {[%clk 0:00:33]} 32. exd3 {[%clk 0:00:36]}  Nd4 {[%clk 0:00:33]} 33. Rxf6 {[%clk 0:00:33]}  gxf6 {[%clk 0:00:30]} 34. Qxe4 {[%clk 0:00:31]}  Qe8 {[%clk 0:00:18]} 35. Qxe8+ {[%clk 0:00:27]}  Rxe8 {[%clk 0:00:19]} 36. Bg4 {[%clk 0:00:27]}  f5 {[%clk 0:00:16]} 37. Bh5 {[%clk 0:00:26]}  Re7 {[%clk 0:00:16]} 38. Rc4 {[%clk 0:00:24]}  Rd7 {[%clk 0:00:14]} 39. Kg2 {[%clk 0:00:22]}  Kg7 {[%clk 0:00:13]} 40. Rc5 {[%clk 0:00:19]}  Kf6 {[%clk 0:00:13]} 41. b4 {[%clk 0:00:18]}  Ne6 {[%clk 0:00:13]} 42. Rc3 {[%clk 0:00:17]}  Nd4 {[%clk 0:00:13]} 43. Bf3 {[%clk 0:00:17]}  b6 {[%clk 0:00:11]} 44. a3 {[%clk 0:00:17]}  Rd6 {[%clk 0:00:10]} 45. Bd1 {[%clk 0:00:16]}  Ke5 {[%clk 0:00:10]} 46. Rc8 {[%clk 0:00:16]}  Nb5 {[%clk 0:00:10]} 47. Re8+ {[%clk 0:00:15]}  Kf6 {[%clk 0:00:10]} 48. Ra8 {[%clk 0:00:14]}  Nxa3 {[%clk 0:00:07]} 49. Rxa6 {[%clk 0:00:13]}  Rxd3 {[%clk 0:00:06]} 50. Rxb6+ {[%clk 0:00:13]}  Ke5 {[%clk 0:00:07]} 51. Be2 {[%clk 0:00:13]}  Rd2 {[%clk 0:00:07]} 52. Bf3 {[%clk 0:00:12]}  Nc2 {[%clk 0:00:06]} 53. Rxh6 {[%clk 0:00:12]}  Ne1+ {[%clk 0:00:06]} 54. Kf1 {[%clk 0:00:10]}  Nxf3 {[%clk 0:00:07]} 55. Rh8 {[%clk 0:00:10]}  Ke4 {[%clk 0:00:06]} 56. Re8+ {[%clk 0:00:10]}  Kd4 {[%clk 0:00:06]} 57. Rd8+ {[%clk 0:00:09]}  Ke5 {[%clk 0:00:04]} 58. Rxd2 {[%clk 0:00:09]}  Nxd2+ {[%clk 0:00:05]} 59. Ke2 {[%clk 0:00:09]}  Nb3 {[%clk 0:00:06]} 60. Kd3 {[%clk 0:00:09]}  Kd5 {[%clk 0:00:03]} 61. h5 {[%clk 0:00:08]}  Nd4 {[%clk 0:00:02]} 62. h6 {[%clk 0:00:07]}  Nc6 {[%clk 0:00:03]} 63. h7 {[%clk 0:00:06]}  Ne5+ {[%clk 0:00:04]} 64. Ke3 {[%clk 0:00:05]}  Ng6 {[%clk 0:00:05]} 65. f3 {[%clk 0:00:02]}  Kc4 {[%clk 0:00:05]} 66. g4 {[%clk 0:00:02]}  fxg4 {[%clk 0:00:02]} 67. fxg4 {[%clk 0:00:02]}  Kxb4 {[%clk 0:00:03]} 68. Ke4 {[%clk 0:00:02]}  Kc5 {[%clk 0:00:04]} 69. Kf5 {[%clk 0:00:02]}  Nh8 {[%clk 0:00:03]} 70. g5 {[%clk 0:00:03]}  Kd6 {[%clk 0:00:04]} 71. g6 {[%clk 0:00:03]}  Ke7 {[%clk 0:00:04]} 72. g7 {[%clk 0:00:03]}  Nf7 {[%clk 0:00:03]} 73. g8=Q {[%clk 0:00:01]}  Nd6+ {[%clk 0:00:04]} 74. Kg5 {[%clk 0:00:01]}  Ne4+ {[%clk 0:00:05]} 75. Kf4 {[%clk 0:00:01]}  Nf6 {[%clk 0:00:06]} 76. Qg7+ {[%clk 0:00:01]}  Ke6 {[%clk 0:00:07]} 77. Qg6 {[%clk 0:00:02]}  Ke7 {[%clk 0:00:07]} 78. Qxf6+ {[%clk 0:00:02]}  Kxf6 {[%clk 0:00:06]} 79. h8=Q+ {[%clk 0:00:02]}  Kf7 {[%clk 0:00:07]} 80. Qh7+ {[%clk 0:00:02]}  Kf6 {[%clk 0:00:07]} 81. Qh6+ {[%clk 0:00:03]}  Kf7 {[%clk 0:00:08]} 82. Qh5+ {[%clk 0:00:03]}  Kf6 {[%clk 0:00:09]} 83. Qg5+ {[%clk 0:00:04]}  Kf7 {[%clk 0:00:09]} 84. Qf5+ {[%clk 0:00:04]}  Kg7 {[%clk 0:00:09]} 85. Qe5+ {[%clk 0:00:05]}  Kh6 {[%clk 0:00:10]} 86. Qd6+ {[%clk 0:00:05]}  Kh7 {[%clk 0:00:11]} 87. Kg3 {[%clk 0:00:06]}  Kg7 {[%clk 0:00:12]} 88. Kg4 {[%clk 0:00:06]}  Kf7 {[%clk 0:00:13]} 89. Kg5 {[%clk 0:00:07]}  Kg7 {[%clk 0:00:14]} 90. Qf6+ {[%clk 0:00:07]}  Kg8 {[%clk 0:00:14]} 91. Qe7 {[%clk 0:00:08]}  Kh8 {[%clk 0:00:14]} 92. Kg6 {[%clk 0:00:08]} 1-0


[Site "https://www.chess.com"]

[Event "Titled Tuesday Blitz March 22 Early 2022"]
[White "Miszler, Levente"]
[Black "Przybylski, Wojciech"]
[WhiteFideId "763276"]
[BlackFideId "1117599"]
[WhiteElo "1966"]
[BlackElo "2133"]
[Result "0-1"]
[Round "11"]
[TimeControl "180+1"]
[Date "2022.03.22"]
[WhiteClock "0:00:10"]
[BlackClock "0:00:11"]

1. e4 {[%clk 0:03:00]}  c5 {[%clk 0:02:57]} 2. Nf3 {[%clk 0:03:01]}  d6 {[%clk 0:02:55]} 3. d4 {[%clk 0:03:01]}  cxd4 {[%clk 0:02:54]} 4. Nxd4 {[%clk 0:03:02]}  Nf6 {[%clk 0:02:49]} 5. Nc3 {[%clk 0:03:02]}  a6 {[%clk 0:02:49]} 6. Bg5 {[%clk 0:03:02]}  e6 {[%clk 0:02:49]} 7. f4 {[%clk 0:03:02]}  Nbd7 {[%clk 0:02:48]} 8. Qf3 {[%clk 0:02:56]}  Qc7 {[%clk 0:02:46]} 9. O-O-O {[%clk 0:02:54]}  b5 {[%clk 0:02:45]} 10. e5 {[%clk 0:02:50]}  Bb7 {[%clk 0:02:43]} 11. Qh3 {[%clk 0:02:48]}  d5 {[%clk 0:02:39]} 12. exf6 {[%clk 0:02:33]}  gxf6 {[%clk 0:02:38]} 13. Nxe6 {[%clk 0:02:26]}  fxe6 {[%clk 0:02:31]} 14. Qxe6+ {[%clk 0:02:26]}  Be7 {[%clk 0:02:30]} 15. Bh6 {[%clk 0:02:10]}  Nc5 {[%clk 0:02:23]} 16. Qh3 {[%clk 0:02:03]}  Qd7 {[%clk 0:02:13]} 17. Qh5+ {[%clk 0:01:56]}  Kd8 {[%clk 0:02:12]} 18. Nxd5 {[%clk 0:01:55]}  Bxd5 {[%clk 0:01:56]} 19. Rxd5 {[%clk 0:01:56]}  Bd6 {[%clk 0:01:53]} 20. Be2 {[%clk 0:01:48]}  Nb7 {[%clk 0:01:24]} 21. Rhd1 {[%clk 0:01:45]}  Kc7 {[%clk 0:01:22]} 22. f5 {[%clk 0:01:39]}  Rhe8 {[%clk 0:01:12]} 23. Bf3 {[%clk 0:01:34]}  Rad8 {[%clk 0:01:10]} 24. Kb1 {[%clk 0:01:14]}  Qe7 {[%clk 0:00:53]} 25. Qg4 {[%clk 0:00:50]}  Rg8 {[%clk 0:00:35]} 26. Qd4 {[%clk 0:00:42]}  Bc5 {[%clk 0:00:33]} 27. Bf4+ {[%clk 0:00:33]}  Kb6 {[%clk 0:00:33]} 28. Qc3 {[%clk 0:00:27]}  Rxd5 {[%clk 0:00:29]} 29. Rxd5 {[%clk 0:00:28]}  Rd8 {[%clk 0:00:25]} 30. Rxd8 {[%clk 0:00:25]}  Nxd8 {[%clk 0:00:21]} 31. a3 {[%clk 0:00:25]}  a5 {[%clk 0:00:17]} 32. Qd3 {[%clk 0:00:24]}  Nc6 {[%clk 0:00:16]} 33. Qd5 {[%clk 0:00:23]}  Qe1+ {[%clk 0:00:14]} 34. Ka2 {[%clk 0:00:22]}  Qe8 {[%clk 0:00:14]} 35. Qxc6+ {[%clk 0:00:16]}  Qxc6 {[%clk 0:00:14]} 36. Bxc6 {[%clk 0:00:17]}  Kxc6 {[%clk 0:00:15]} 37. c3 {[%clk 0:00:06]}  a4 {[%clk 0:00:15]} 38. b3 {[%clk 0:00:05]}  Kd5 {[%clk 0:00:15]} 39. bxa4 {[%clk 0:00:03]}  bxa4 {[%clk 0:00:15]} 40. g3 {[%clk 0:00:02]}  Ke4 {[%clk 0:00:15]} 41. Bc7 {[%clk 0:00:01]}  Kxf5 {[%clk 0:00:15]} 42. Kb2 {[%clk 0:00:02]}  Ke4 {[%clk 0:00:14]} 43. Kc2 {[%clk 0:00:01]}  f5 {[%clk 0:00:14]} 44. Kb2 {[%clk 0:00:01]}  Kd3 {[%clk 0:00:15]} 45. Bf4 {[%clk 0:00:01]}  Kc4 {[%clk 0:00:15]} 46. Be5 {[%clk 0:00:02]}  Be3 {[%clk 0:00:15]} 47. h4 {[%clk 0:00:01]}  Bf2 {[%clk 0:00:15]} 48. Kc2 {[%clk 0:00:02]}  Be1 {[%clk 0:00:15]} 49. h5 {[%clk 0:00:01]}  Bf2 {[%clk 0:00:14]} 50. h6 {[%clk 0:00:01]}  Bc5 {[%clk 0:00:14]} 51. Kb2 {[%clk 0:00:01]}  Be3 {[%clk 0:00:14]} 52. Bf6 {[%clk 0:00:01]}  Bxh6 {[%clk 0:00:14]} 53. Be5 {[%clk 0:00:01]}  Bd2 {[%clk 0:00:14]} 54. Kc2 {[%clk 0:00:02]}  Be3 {[%clk 0:00:14]} 55. Bd6 {[%clk 0:00:02]}  Bf2 {[%clk 0:00:13]} 56. Be5 {[%clk 0:00:03]}  h5 {[%clk 0:00:13]} 57. Bd6 {[%clk 0:00:03]}  Be3 {[%clk 0:00:14]} 58. Bc7 {[%clk 0:00:04]}  Bc5 {[%clk 0:00:14]} 59. Bb8 {[%clk 0:00:04]}  Bxa3 {[%clk 0:00:14]} 60. Be5 {[%clk 0:00:04]}  Bc5 {[%clk 0:00:14]} 61. Bf6 {[%clk 0:00:04]}  Bf2 {[%clk 0:00:14]} 62. Be5 {[%clk 0:00:05]}  Bg1 {[%clk 0:00:14]} 63. Bc7 {[%clk 0:00:04]}  Bh2 {[%clk 0:00:14]} 64. Bb8 {[%clk 0:00:05]}  h4 {[%clk 0:00:15]} 65. gxh4 {[%clk 0:00:06]}  Bxb8 {[%clk 0:00:14]} 66. h5 {[%clk 0:00:07]}  Be5 {[%clk 0:00:15]} 67. h6 {[%clk 0:00:07]}  Bxc3 {[%clk 0:00:15]} 68. Kb1 {[%clk 0:00:08]}  f4 {[%clk 0:00:15]} 69. Ka2 {[%clk 0:00:09]}  f3 {[%clk 0:00:15]} 70. h7 {[%clk 0:00:10]}  f2 {[%clk 0:00:14]} 71. h8=B {[%clk 0:00:08]}  Bxh8 {[%clk 0:00:14]} 72. Ka3 {[%clk 0:00:08]}  Kb5 {[%clk 0:00:14]} 73. Ka2 {[%clk 0:00:09]}  Bb2 {[%clk 0:00:14]} 74. Kb1 {[%clk 0:00:07]}  f1=Q+ {[%clk 0:00:13]} 75. Kc2 {[%clk 0:00:08]}  Qf2+ {[%clk 0:00:13]} 76. Kb1 {[%clk 0:00:08]}  Qf3 {[%clk 0:00:13]} 77. Ka2 {[%clk 0:00:09]}  Kb4 {[%clk 0:00:13]} 78. Kb1 {[%clk 0:00:09]}  Qf4 {[%clk 0:00:11]} 79. Ka2 {[%clk 0:00:09]}  Qc4+ {[%clk 0:00:11]} 80. Kb1 {[%clk 0:00:10]}  Qc1+ {[%clk 0:00:11]} 81. Ka2 {[%clk 0:00:10]}  Qa1# {[%clk 0:00:11]} 0-1


[Site "https://www.chess.com"]